bitfinex/quotes_BTCUSD_20241001
["timestamp","ask_amount","ask_price","bid_price","bid_amount"]
[1727787318145,0.61445109,63778.0,63777.0,0.74883416]
[1727787318146,0.6212034,63778.0,63777.0,0.74883416]
[1727787318368,0.6212034,63778.0,63777.0,0.56886805]
[1727787318587,0.6232034,63778.0,63777.0,0.282442]
[1727787318838,0.6232034,63778.0,63777.0,0.32946984]
[1727787318839,0.6991034,63778.0,63777.0,0.32946984]
[1727787319023,0.6971034,63778.0,63777.0,0.32946984]
[1727787319278,0.6971034,63778.0,63777.0,0.282442]
[1727787319503,0.6971034,63778.0,63777.0,0.56950076]
[1727787319749,0.6971034,63778.0,63777.0,0.282442]
[1727787319996,0.69035109,63778.0,63777.0,0.35298401]
[1727787320231,0.69711181,63778.0,63777.0,0.35298401]
[1727787320462,0.69711181,63778.0,63777.0,0.56953329]
[1727787320697,0.62121181,63778.0,63777.0,0.96107317]
[1727787320939,0.62121181,63778.0,63777.0,0.7494994]
[1727787321186,0.62121181,63778.0,63777.0,0.65544908]
[1727787321692,0.62121181,63778.0,63777.0,0.77301015]
[1727787322159,0.62121181,63778.0,63777.0,0.65544908]
[1727787322384,0.62121181,63778.0,63777.0,0.77301015]
[1727787322856,0.6243615,63778.0,63777.0,0.77301015]
[1727787324325,0.6243615,63778.0,63777.0,0.77191664]
[1727787329386,0.6243615,63778.0,63777.0,0.65435557]
[1727787336963,0.4759615,63778.0,63777.0,0.65435557]
[1727787337206,0.4759615,63778.0,63777.0,0.70930183]
[1727787337454,0.4759615,63778.0,63777.0,0.71430183]
[1727787337693,0.46605109,63778.0,63777.0,0.71430183]
[1727787338371,0.46605109,63778.0,63777.0,1.01653949]
[1727787338598,0.46605109,63778.0,63777.0,0.71430183]
[1727787338828,0.47589294,63778.0,63777.0,0.71430183]
[1727787339059,0.47589294,63778.0,63777.0,1.01653949]
[1727787339296,0.47589294,63778.0,63777.0,0.74571183]
[1727787340013,0.47489294,63778.0,63777.0,0.73471183]
[1727787340202,0.47389294,63778.0,63777.0,0.9290457]
[1727787340342,0.47389294,63778.0,63777.0,0.9340457]
[1727787340577,0.47489294,63778.0,63777.0,0.9430457]
[1727787340848,0.46505109,63778.0,63777.0,0.9430457]
[1727787341224,0.46505109,63778.0,63777.0,0.73471183]
[1727787341420,0.46605109,63778.0,63777.0,0.9570457]
[1727787341652,0.46505109,63778.0,63777.0,0.9430457]
[1727787341857,0.46405109,63778.0,63777.0,0.9340457]
[1727787342075,0.46505109,63778.0,63777.0,0.9480457]
[1727787342300,0.46505109,63778.0,63777.0,0.75371183]
[1727787342689,0.47489925,63778.0,63777.0,0.75371183]
[1727787342922,0.47489925,63778.0,63777.0,0.96198008]
[1727787343432,0.47489925,63778.0,63777.0,0.75371183]
[1727787343868,0.46505109,63778.0,63777.0,0.75371183]
[1727787344557,0.46505109,63778.0,63777.0,0.96198008]
[1727787344777,0.46505109,63778.0,63777.0,0.75371183]
[1727787347071,0.46505109,63778.0,63777.0,0.77671183]
[1727787347996,0.46505109,63778.0,63777.0,0.77541677]
[1727787348235,0.46505109,63778.0,63777.0,0.85051677]
[1727787348485,0.46505109,63778.0,63777.0,2.18453777]
[1727787349158,0.46505109,63778.0,63777.0,1.28563377]
[1727787351761,0.46505109,63778.0,63777.0,0.74741677]
[1727787351762,0.60505109,63778.0,63777.0,0.74741677]
[1727787351971,0.60505109,63778.0,63777.0,0.69247051]
[1727787352186,0.6150296,63778.0,63777.0,0.95260665]
[1727787352421,0.60505109,63778.0,63777.0,0.95260665]
[1727787352641,0.61502558,63778.0,63777.0,0.95260665]
[1727787353095,0.61502558,63778.0,63777.0,0.81159448]
[1727787353308,0.61502558,63778.0,63777.0,0.95260665]
[1727787354456,0.60505109,63778.0,63777.0,0.81159448]
[1727787354680,0.6150296,63778.0,63777.0,0.81159448]
[1727787354902,0.6150296,63778.0,63777.0,0.81659448]
[1727787355316,0.6150296,63778.0,63777.0,0.81159448]
[1727787356459,0.6150296,63778.0,63777.0,0.81659448]
[1727787356690,0.6150296,63778.0,63777.0,0.81159448]
[1727787357142,0.6150296,63778.0,63777.0,0.95260665]
[1727787357370,0.60297224,63778.0,63777.0,0.82839021]
[1727787357610,0.60297224,63778.0,63777.0,0.82869966]
[1727787358696,0.60297224,63778.0,63777.0,0.82882636]
[1727787358883,0.60297224,63778.0,63777.0,0.61313599]
[1727787360754,0.60297224,63778.0,63777.0,0.82862704]
[1727787361194,0.59299373,63778.0,63777.0,0.70950307]
[1727787361430,0.67479373,63778.0,63777.0,0.82701084]
[1727787361649,0.68480827,63778.0,63777.0,0.70950307]
[1727787363216,0.68480827,63778.0,63777.0,0.80351133]
[1727787363441,0.68050912,63778.0,63777.0,0.80351133]
[1727787363651,0.68050912,63778.0,63777.0,0.80394669]
[1727787364317,0.68050912,63778.0,63777.0,0.70993932]
[1727787364805,0.68050912,63778.0,63777.0,0.8106528]
[1727787365025,0.68050912,63778.0,63777.0,0.82731504]
[1727787365276,0.68050912,63778.0,63777.0,0.70980583]
[1727787365511,0.68050912,63778.0,63777.0,0.94645107]
[1727787365965,0.68050912,63778.0,63777.0,0.8273271]
[1727787366470,0.59870912,63778.0,63777.0,0.8273271]
[1727787366929,0.59870912,63778.0,63777.0,0.70980583]
[1727787367393,0.59870912,63778.0,63777.0,0.8273271]
[1727787367617,0.59870912,63778.0,63777.0,0.70980583]
[1727787368108,0.59870912,63778.0,63777.0,0.82734]
[1727787368330,0.59870912,63778.0,63777.0,0.70980583]
[1727787372331,0.59013458,63778.0,63777.0,0.82734994]
[1727787372561,0.59013458,63778.0,63777.0,0.70980583]
[1727787373281,0.59013458,63778.0,63777.0,0.8273507]
[1727787373964,0.59013458,63778.0,63777.0,0.70980583]
[1727787374198,0.59013458,63778.0,63777.0,0.55334803]
[1727787374642,0.58441919,63778.0,63777.0,0.53668579]
[1727787374917,0.58441919,63778.0,63777.0,0.60721573]
[1727787374918,0.59011963,63778.0,63777.0,0.60721573]
[1727787375147,0.59011963,63778.0,63777.0,0.59321573]
[1727787375370,0.66751963,63778.0,63777.0,0.36328843]
[1727787375615,0.66751963,63778.0,63777.0,0.37728843]
[1727787375845,0.67051963,63778.0,63777.0,0.39128843]
[1727787376064,0.66851963,63778.0,63777.0,0.39128843]
[1727787376291,0.67051963,63778.0,63777.0,0.39128843]
[1727787376790,0.67051963,63778.0,63777.0,0.32075849]
[1727787377020,0.66851963,63778.0,63777.0,0.32075849]
[1727787377247,0.66851963,63778.0,63777.0,0.39128843]
[1727787377471,0.66851963,63778.0,63777.0,0.32075849]
[1727787378840,0.66851963,63778.0,63777.0,0.60735933]
[1727787379754,0.66851963,63778.0,63777.0,0.3912755]
[1727787380942,0.66851963,63778.0,63777.0,0.32075849]
[1727787381654,0.59011963,63778.0,63777.0,0.32075849]
[1727787381886,0.59239848,63778.0,63777.0,0.32075849]
[1727787382383,0.59239848,63778.0,63777.0,0.3912755]
[1727787382613,0.59239848,63778.0,63777.0,0.63090076]
[1727787382839,0.59239848,63778.0,63777.0,0.53687807]
[1727787383997,0.59239848,63778.0,63777.0,0.39126334]
[1727787384226,0.59239848,63778.0,63777.0,0.39126336]
[1727787384483,0.59239848,63778.0,63777.0,0.53684657]
[1727787384713,0.59239848,63778.0,63777.0,0.55340756]
[1727787384952,0.59239848,63778.0,63777.0,0.32075849]
[1727787385188,0.59239848,63778.0,63777.0,0.55342372]
[1727787386362,0.59239848,63778.0,63777.0,0.64744641]
[1727787387062,0.59239848,63778.0,63777.0,0.55342372]
[1727787387532,0.59239848,63778.0,63777.0,0.64744641]
[1727787388005,0.59239848,63778.0,63777.0,0.80390421]
[1727787388236,0.59239848,63778.0,63777.0,0.70988152]
[1727787388675,0.59239848,63778.0,63777.0,0.49377728]
[1727787388895,0.59239848,63778.0,63777.0,0.82709689]
[1727787389844,0.58441919,63778.0,63777.0,0.82709689]
[1727787390297,0.59436674,63778.0,63777.0,0.82709689]
[1727787391240,0.59436674,63778.0,63777.0,0.8105359]
[1727787391463,0.59436674,63778.0,63777.0,0.82704764]
[1727787392238,0.59436674,63778.0,63777.0,0.82707075]
[1727787392803,0.59436674,63778.0,63777.0,0.70952749]
[1727787394609,0.59436674,63778.0,63777.0,0.69301575]
[1727787394846,0.59436674,63778.0,63777.0,0.70950345]
[1727787395068,0.59436674,63778.0,63777.0,0.69301575]
[1727787395310,0.59436674,63778.0,63777.0,0.70950345]
[1727787398268,0.59436674,63778.0,63777.0,0.70949699]
[1727787398774,0.59436674,63778.0,63777.0,0.70990475]
[1727787398994,0.59436674,63778.0,63777.0,0.82754847]
[1727787399227,0.59436674,63778.0,63777.0,0.70990475]
[1727787399918,0.59436674,63778.0,63777.0,0.67849475]
[1727787401591,0.59436674,63778.0,63777.0,0.66201351]
[1727787401824,0.59436674,63778.0,63777.0,0.67850853]
[1727787405046,0.59436674,63778.0,63777.0,0.67846937]
[1727787405285,0.59436674,63778.0,63777.0,0.67847039]
[1727787406430,0.59436674,63778.0,63777.0,0.67848971]
[1727787408295,0.59436674,63778.0,63777.0,0.6784608]
[1727787411917,0.59436674,63778.0,63777.0,0.67845057]
[1727787416363,0.58441919,63778.0,63777.0,0.67845057]
[1727787416813,0.59429401,63778.0,63777.0,0.67845057]
[1727787417483,0.59429401,63778.0,63777.0,0.91353265]
[1727787417755,0.45429401,63778.0,63777.0,1.11851052]
[1727787418198,0.44441919,63778.0,63777.0,0.59961319]
[1727787418420,0.44441919,63778.0,63777.0,1.14696256]
[1727787418647,0.45423726,63778.0,63777.0,1.14696256]
[1727787418876,0.44441919,63778.0,63777.0,1.14696256]
[1727787419352,0.44441919,63778.0,63777.0,1.13296256]
[1727787419792,0.44441919,63778.0,63777.0,0.83200376]
[1727787420008,0.44441919,63778.0,63777.0,1.13296256]
[1727787420438,0.44341919,63778.0,63777.0,1.11896256]
[1727787420871,0.44341919,63778.0,63777.0,1.13296256]
[1727787421308,0.44341919,63778.0,63777.0,1.14696256]
[1727787421811,0.44341919,63778.0,63777.0,1.13296256]
[1727787422034,0.44341919,63778.0,63777.0,1.04037126]
[1727787422258,0.44341919,63778.0,63777.0,1.05437126]
[1727787422721,0.44341919,63778.0,63777.0,0.84600376]
[1727787422937,0.44341919,63778.0,63777.0,1.05437126]
[1727787423167,0.44341919,63778.0,63777.0,0.84600376]
[1727787424363,0.44341919,63778.0,63777.0,0.8295667]
[1727787424589,0.44341919,63778.0,63777.0,1.05427291]
[1727787425072,0.44341919,63778.0,63777.0,0.84598044]
[1727787425309,0.44341919,63778.0,63777.0,0.96510441]
[1727787425522,0.59515847,63778.0,63777.0,0.82773457]
[1727787426428,0.59515847,63778.0,63777.0,0.96878602]
[1727787426908,0.59515847,63778.0,63777.0,0.82773457]
[1727787427356,0.59515847,63778.0,63777.0,0.82759029]
[1727787427580,0.59515847,63778.0,63777.0,0.96863647]
[1727787428013,0.59515847,63778.0,63777.0,0.82759029]
[1727787428441,0.59515847,63778.0,63777.0,0.96863526]
[1727787429609,0.59515847,63778.0,63777.0,0.82759029]
[1727787429837,0.59515847,63778.0,63777.0,0.96863062]
[1727787430763,0.59515847,63778.0,63777.0,0.95236116]
[1727787430998,0.59515847,63778.0,63777.0,0.96862093]
[1727787431443,0.59515847,63778.0,63777.0,0.96940351]
[1727787435249,0.59515847,63778.0,63777.0,0.82836652]
[1727787435683,0.59515847,63778.0,63777.0,0.96939318]
[1727787436364,0.59515847,63778.0,63777.0,0.96933616]
[1727787436586,0.59515847,63778.0,63777.0,0.82830823]
[1727787437524,0.58531919,63778.0,63777.0,0.82830823]
[1727787437758,0.58531919,63778.0,63777.0,0.96933475]
[1727787438013,0.67064147,63778.0,63777.0,0.70918426]
[1727787438933,0.67064147,63778.0,63777.0,0.80321142]
[1727787439153,0.67064147,63778.0,63777.0,0.68118426]
[1727787439374,0.67064147,63778.0,63777.0,0.69518426]
[1727787439598,0.67064147,63778.0,63777.0,0.70918426]
[1727787440763,0.67064147,63778.0,63777.0,0.69518426]
[1727787441396,0.67064147,63778.0,63777.0,0.70918426]
[1727787443307,0.66081919,63778.0,63777.0,0.70918426]
[1727787443512,0.67070704,63778.0,63777.0,0.70918426]
[1727787443949,0.67070704,63778.0,63777.0,0.67776426]
[1727787444173,0.67070704,63778.0,63777.0,0.51632115]
[1727787444439,0.67070704,63778.0,63777.0,0.74943596]
[1727787444648,0.67070704,63778.0,63777.0,0.53273577]
[1727787444873,0.67070704,63778.0,63777.0,0.53272411]
[1727787445108,0.67070704,63778.0,63777.0,0.67890149]
[1727787445739,0.67070704,63778.0,63777.0,0.77292865]
[1727787445968,0.67070704,63778.0,63777.0,0.7727719]
[1727787446398,0.67070704,63778.0,63777.0,0.67875296]
[1727787446617,0.67070704,63778.0,63777.0,0.7727719]
[1727787446856,0.59520704,63778.0,63777.0,0.7727719]
[1727787447106,0.59520704,63778.0,63777.0,0.74926742]
[1727787447335,0.59520704,63778.0,63777.0,0.67875296]
[1727787448003,0.59520704,63778.0,63777.0,0.74926766]
[1727787448883,0.59520704,63778.0,63777.0,0.67875296]
[1727787449336,0.59520704,63778.0,63777.0,0.53272457]
[1727787449797,0.59520704,63778.0,63777.0,0.74940635]
[1727787450904,0.59520704,63778.0,63777.0,0.74935117]
[1727787451350,0.59520704,63778.0,63777.0,0.74936723]
[1727787454032,0.59520704,63778.0,63777.0,0.74934554]
[1727787454914,0.59520704,63778.0,63777.0,0.53270215]
[1727787455122,0.59520704,63778.0,63777.0,0.74929868]
[1727787455360,0.59520704,63778.0,63777.0,0.46218756]
[1727787455798,0.59520704,63778.0,63777.0,0.53270168]
[1727787456065,0.59520704,63778.0,63777.0,0.74929952]
[1727787456277,0.59520704,63778.0,63777.0,0.53270168]
[1727787456486,0.59520704,63778.0,63777.0,0.46218756]
[1727787456686,0.59520704,63778.0,63777.0,0.74931981]
[1727787456907,0.59520704,63778.0,63777.0,0.53270168]
[1727787457103,0.59520704,63778.0,63777.0,0.46218756]
[1727787457371,0.59520704,63778.0,63777.0,0.51632041]
[1727787457590,0.59520704,63778.0,63777.0,0.74926249]
[1727787458466,0.59520704,63778.0,63777.0,0.74926537]
[1727787458894,0.58531919,63778.0,63777.0,0.74926537]
[1727787459124,0.59516921,63778.0,63777.0,0.74926537]
[1727787459547,0.59516921,63778.0,63777.0,0.74926292]
[1727787460646,0.59516921,63778.0,63777.0,0.53267082]
[1727787461091,0.59516921,63778.0,63777.0,0.74926439]
[1727787461739,0.59516921,63778.0,63777.0,0.53267082]
[1727787462863,0.59516921,63778.0,63777.0,0.74925016]
[1727787463784,0.59516921,63778.0,63777.0,0.51631828]
[1727787464006,0.59516921,63778.0,63777.0,0.7492763]
[1727787464457,0.59516921,63778.0,63777.0,0.74927792]
[1727787464696,0.59516921,63778.0,63777.0,0.74927964]
[1727787467124,0.59516921,63778.0,63777.0,0.73288789]
[1727787467340,0.59516921,63778.0,63777.0,0.74934958]
[1727787467845,0.59516921,63778.0,63777.0,0.74935845]
[1727787468485,0.59516921,63778.0,63777.0,0.77285186]
[1727787469612,0.59516921,63778.0,63777.0,0.67883587]
[1727787470276,0.59516921,63778.0,63777.0,0.67883392]
[1727787470504,0.59516921,63778.0,63777.0,0.67889077]
[1727787471633,0.59516921,63778.0,63777.0,0.79645049]
[1727787472065,0.59516921,63778.0,63777.0,0.67889077]
[1727787472748,0.59516921,63778.0,63777.0,0.79645049]
[1727787473439,0.59516921,63778.0,63777.0,0.66243103]
[1727787473665,0.59516921,63778.0,63777.0,0.67892849]
[1727787473896,0.58531919,63778.0,63777.0,0.66243103]
[1727787474120,0.58531919,63778.0,63777.0,0.67889117]
[1727787474344,0.59520835,63778.0,63777.0,0.67889117]
[1727787474565,0.59520835,63778.0,63777.0,0.79645089]
[1727787475525,0.59520835,63778.0,63777.0,0.79660357]
[1727787475746,0.59520835,63778.0,63777.0,0.67899943]
[1727787475975,0.59520835,63778.0,63777.0,0.79660357]
[1727787476194,0.59520835,63778.0,63777.0,0.67899943]
[1727787476415,0.59520835,63778.0,63777.0,0.79660357]
[1727787477070,0.59520835,63778.0,63777.0,0.67899943]
[1727787477513,0.59520835,63778.0,63777.0,0.79660357]
[1727787478380,0.59520835,63778.0,63777.0,0.67899943]
[1727787478616,0.59520835,63778.0,63777.0,0.79660357]
[1727787479514,0.59520835,63778.0,63777.0,0.67899943]
[1727787479975,0.59520835,63778.0,63777.0,0.66253929]
[1727787480207,0.59520835,63778.0,63777.0,0.67899978]
[1727787480423,0.59520835,63778.0,63777.0,0.79665263]
[1727787480664,0.59520835,63778.0,63777.0,0.67899978]
[1727787481356,0.66981919,63778.0,63777.0,0.25287844]
[1727787481602,0.68468313,63778.0,63777.0,0.20690249]
[1727787481834,0.68468313,63778.0,63777.0,0.190442]
[1727787482296,0.68468313,63778.0,63777.0,0.162442]
[1727787482541,0.68468313,63778.0,63777.0,0.183442]
[1727787483042,0.78074224,63778.0,63777.0,0.162442]
[1727787483283,0.68468313,63778.0,63777.0,0.172442]
[1727787484395,0.68468313,63778.0,63777.0,0.175442]
[1727787488917,0.59518313,63778.0,63777.0,0.175442]
[1727787489796,0.59718313,63778.0,63777.0,0.175442]
[1727787508275,0.68918313,63778.0,63777.0,0.018646]
[1727787508721,0.8083071,63778.0,63777.0,0.018646]
[1727787510286,0.68918313,63778.0,63777.0,0.018646]
[1727787510949,0.84597613,63778.0,63777.0,0.018646]
[1727787511415,0.68918313,63778.0,63777.0,0.018646]
[1727787511865,0.84597613,63778.0,63777.0,0.018646]
[1727787514191,0.9651001,63778.0,63777.0,0.018646]
[1727787514687,1.12154688,63778.0,63777.0,0.018646]
[1727787515640,0.9651001,63778.0,63777.0,0.018646]
[1727787519487,0.9651001,63778.0,63777.0,0.013646]
[1727787520632,0.84597613,63778.0,63777.0,0.013646]
[1727787521559,0.68918313,63778.0,63777.0,0.013646]
[1727787522895,0.84597613,63778.0,63777.0,0.013646]
[1727787524252,0.68918313,63778.0,63777.0,0.013646]
[1727787527852,0.84597613,63778.0,63777.0,0.013646]
[1727787528093,0.68918313,63778.0,63777.0,0.013646]
[1727787531230,0.95816384,63778.0,63777.0,0.013646]
[1727787531462,0.80137084,63778.0,63777.0,0.013646]
[1727787531932,0.95816384,63778.0,63777.0,0.013646]
[1727787532195,0.80137084,63778.0,63777.0,0.013646]
[1727787536347,0.60718313,63778.0,63777.0,0.013646]
[1727787536580,0.60718313,63778.0,63777.0,0.170442]
[1727787537152,0.60718313,63778.0,63777.0,0.013646]
[1727787538484,0.60718313,63778.0,63777.0,0.170442]
[1727787557221,0.60298313,63778.0,63777.0,0.170442]
[1727787558140,0.60298313,63778.0,63777.0,0.013646]
[1727787559565,0.75977613,63778.0,63777.0,0.013646]
[1727787559798,0.60298313,63778.0,63777.0,0.013646]
[1727787561733,0.75977613,63778.0,63777.0,0.013646]
[1727787563171,0.60298313,63778.0,63777.0,0.013646]
[1727787563408,0.75977613,63778.0,63777.0,0.013646]
[1727787568703,0.60298313,63778.0,63777.0,0.013646]
[1727787571519,0.60298313,63778.0,63777.0,0.170442]
[1727787572024,0.59098313,63778.0,63777.0,0.3268998]
[1727787572553,0.59098313,63778.0,63777.0,0.54429839]
[1727787572801,0.58311919,63778.0,63777.0,0.3739903]
[1727787573287,0.59136735,63778.0,63777.0,0.3739903]
[1727787573550,0.59136735,63778.0,63777.0,0.3268998]
[1727787581002,0.59136735,63778.0,63777.0,0.170442]
[1727787582139,0.59136735,63778.0,63777.0,0.013646]
[1727787582368,0.59136735,63778.0,63777.0,0.170442]
[1727787583790,0.70592863,63778.0,63777.0,0.013646]
[1727787584011,0.59636735,63778.0,63777.0,0.013646]
[1727787584236,0.60136735,63778.0,63777.0,0.013646]
[1727787586054,0.75816035,63778.0,63777.0,0.013646]
[1727787586241,0.60136735,63778.0,63777.0,0.013646]
[1727787587180,0.75816035,63778.0,63777.0,0.013646]
[1727787589024,0.83606035,63778.0,63777.0,0.013646]
[1727787593308,0.75816035,63778.0,63777.0,0.013646]
[1727787601204,0.87728432,63778.0,63777.0,0.013646]
[1727787603991,0.75816035,63778.0,63777.0,0.013646]
[1727787607868,0.60136735,63778.0,63777.0,0.013646]
[1727787609406,0.60136735,63778.0,63777.0,0.170442]
[1727787609703,0.60136735,63778.0,63777.0,0.249142]
[1727787609704,0.58936735,63778.0,63777.0,0.249142]
[1727787609891,0.44746735,63778.0,63777.0,0.4055998]
[1727787614091,0.44746735,63778.0,63777.0,0.78320916]
[1727787614551,0.44746735,63778.0,63777.0,0.89615596]
[1727787614958,0.44746735,63778.0,63777.0,0.91015596]
[1727787615192,0.44746735,63778.0,63777.0,0.92415596]
[1727787615403,0.44746735,63778.0,63777.0,0.78320916]
[1727787616295,0.44746735,63778.0,63777.0,0.92415596]
[1727787616533,0.44746735,63778.0,63777.0,0.78320916]
[1727787617176,0.43921919,63778.0,63777.0,0.78320916]
[1727787617389,0.43921919,63778.0,63777.0,0.56645246]
[1727787617612,0.43921919,63778.0,63777.0,0.78853779]
[1727787617817,0.44728094,63778.0,63777.0,0.78853779]
[1727787618040,0.43921919,63778.0,63777.0,0.78853779]
[1727787618261,0.44728094,63778.0,63777.0,0.78853779]
[1727787618473,0.43921919,63778.0,63777.0,0.78853779]
[1727787618689,0.44728725,63778.0,63777.0,0.78853779]
[1727787618900,0.43921919,63778.0,63777.0,0.78853779]
[1727787619115,0.44728725,63778.0,63777.0,0.78853779]
[1727787619325,0.43921919,63778.0,63777.0,0.78853779]
[1727787619552,0.44728725,63778.0,63777.0,0.78853779]
[1727787619764,0.43921919,63778.0,63777.0,0.78853779]
[1727787619976,0.44727464,63778.0,63777.0,0.78853779]
[1727787620189,0.43921919,63778.0,63777.0,0.78853779]
[1727787620409,0.44728094,63778.0,63777.0,0.78853779]
[1727787620639,0.43921919,63778.0,63777.0,0.78853779]
[1727787620898,0.44727464,63778.0,63777.0,0.78853779]
[1727787621190,0.43921919,63778.0,63777.0,0.78853779]
[1727787621403,0.44727464,63778.0,63777.0,0.78853779]
[1727787621631,0.43921919,63778.0,63777.0,0.78853779]
[1727787621846,0.44727464,63778.0,63777.0,0.78853779]
[1727787622057,0.43921919,63778.0,63777.0,0.78853779]
[1727787622273,0.44728094,63778.0,63777.0,0.78853779]
[1727787622494,0.43921919,63778.0,63777.0,0.78853779]
[1727787622707,0.44728094,63778.0,63777.0,0.78853779]
[1727787624528,0.44728094,63778.0,63777.0,0.90576165]
[1727787625017,0.43921919,63778.0,63777.0,0.90576165]
[1727787626760,0.43921919,63778.0,63777.0,0.78853779]
[1727787626979,0.56731919,63778.0,63777.0,0.90766176]
[1727787627227,0.56731919,63778.0,63777.0,0.97794456]
[1727787627480,0.57542644,63778.0,63777.0,0.68557643]
[1727787627715,0.56731919,63778.0,63777.0,0.68557643]
[1727787627960,0.57543275,63778.0,63777.0,0.68557643]
[1727787628196,0.57543275,63778.0,63777.0,0.53463092]
[1727787628672,0.57543275,63778.0,63777.0,0.48775246]
[1727787628904,0.56731919,63778.0,63777.0,0.48775246]
[1727787629369,0.57544536,63778.0,63777.0,0.47375246]
[1727787629881,0.57544536,63778.0,63777.0,0.48775246]
[1727787630110,0.57544536,63778.0,63777.0,0.47375246]
[1727787630341,0.57544536,63778.0,63777.0,0.48775246]
[1727787631316,0.57744536,63778.0,63777.0,0.45633246]
[1727787631551,0.57744536,63778.0,63777.0,0.19987466]
[1727787632725,0.57744536,63778.0,63777.0,0.171442]
[1727787632965,0.57744536,63778.0,63777.0,0.280442]
[1727787633198,0.57744536,63778.0,63777.0,0.266442]
[1727787633437,0.57744536,63778.0,63777.0,0.257442]
[1727787633686,0.56931919,63778.0,63777.0,0.271442]
[1727787633922,0.56931919,63778.0,63777.0,0.265442]
[1727787634149,0.57750211,63778.0,63777.0,0.265442]
[1727787634414,0.57750211,63778.0,63777.0,0.279442]
[1727787636459,0.57750211,63778.0,63777.0,0.179442]
[1727787636692,0.67196302,63778.0,63777.0,0.179442]
[1727787636922,0.57750211,63778.0,63777.0,0.179442]
[1727787637641,0.58750211,63778.0,63777.0,0.179442]
[1727787637889,0.74429511,63778.0,63777.0,0.022646]
[1727787638122,0.74429511,63778.0,63777.0,0.008646]
[1727787638869,0.82079511,63778.0,63777.0,0.008646]
[1727787639110,0.97724189,63778.0,63777.0,0.008646]
[1727787639589,0.29842397,63768.0,63767.0,0.156819]
[1727787639859,0.29842397,63768.0,63765.0,0.000823]
[1727787639860,0.1138,63766.0,63765.0,0.000823]
[1727787640096,0.1138,63766.0,63765.0,0.157648]
[1727787640097,0.55533474,63766.0,63765.0,0.157648]
[1727787640363,0.56007289,63766.0,63765.0,0.157648]
[1727787643053,0.56007289,63766.0,63765.0,0.167648]
[1727787643583,0.56007289,63766.0,63765.0,0.170648]
[1727787644079,0.56007289,63766.0,63765.0,0.013823]
[1727787644328,0.55307289,63766.0,63765.0,0.170648]
[1727787644830,0.54807289,63766.0,63765.0,0.170648]
[1727787647275,0.55007289,63766.0,63765.0,0.170648]
[1727787649008,0.55007289,63766.0,63765.0,0.013823]
[1727787649240,0.55007289,63766.0,63765.0,0.170648]
[1727787649932,0.55007289,63766.0,63765.0,0.013823]
[1727787650184,0.71689589,63766.0,63765.0,0.013823]
[1727787650909,0.87334267,63766.0,63765.0,0.013823]
[1727787651111,0.95104267,63766.0,63765.0,0.013823]
[1727787652038,0.95104267,63766.0,63754.0,0.23508208]
[1727787652039,0.30572397,63755.0,63754.0,0.23508208]
[1727787652270,0.90597016,63755.0,63754.0,0.23508208]
[1727787652502,0.1076,63754.0,63752.0,0.156856]
[1727787652745,0.54413474,63753.0,63752.0,0.156856]
[1727787652983,0.55080507,63753.0,63752.0,0.156856]
[1727787653474,0.002,63751.0,63750.0,0.470586]
[1727787653701,0.106,63751.0,63750.0,0.470586]
[1727787653946,0.55219878,63751.0,63750.0,0.470586]
[1727787655150,0.55219878,63751.0,63750.0,0.489586]
[1727787655626,0.55219878,63751.0,63750.0,0.019]
[1727787655860,0.64378616,63751.0,63750.0,0.019]
[1727787656100,0.55219878,63751.0,63750.0,0.019]
[1727787657284,0.55219878,63751.0,63750.0,0.019824]
[1727787658186,0.55219878,63751.0,63750.0,0.176686]
[1727787658622,0.55219878,63751.0,63750.0,0.019824]
[1727787659075,0.71905878,63751.0,63750.0,0.019824]
[1727787659292,0.87338875,63751.0,63750.0,0.019824]
[1727787659971,0.94988875,63751.0,63750.0,0.019824]
[1727787660931,0.94988875,63751.0,63750.0,0.006824]
[1727787661159,0.94988875,63751.0,63750.0,0.000824]
[1727787661601,0.95488875,63751.0,63750.0,0.000824]
[1727787662079,0.79802875,63751.0,63750.0,0.000824]
[1727787662300,0.95488875,63751.0,63750.0,0.000824]
[1727787662528,0.79802875,63751.0,63750.0,0.000824]
[1727787662753,0.95488875,63751.0,63750.0,0.000824]
[1727787663213,0.94988875,63751.0,63750.0,0.000824]
[1727787663438,0.94988875,63751.0,63750.0,0.001824]
[1727787663439,0.95588875,63751.0,63750.0,0.001824]
[1727787663892,0.94988875,63751.0,63750.0,0.000824]
[1727787664118,0.79302875,63751.0,63750.0,0.000824]
[1727787664347,0.79502875,63751.0,63750.0,0.004824]
[1727787664843,0.56419878,63751.0,63750.0,0.161686]
[1727787666698,0.56419878,63751.0,63750.0,0.004824]
[1727787666699,0.68332275,63751.0,63750.0,0.004824]
[1727787666925,0.92258275,63751.0,63750.0,0.004824]
[1727787669775,0.98525742,63751.0,63750.0,0.004824]
[1727787670000,1.1417042,63751.0,63750.0,0.004824]
[1727787675542,1.1662923,63751.0,63750.0,0.004824]
[1727787676253,1.1417042,63751.0,63750.0,0.004824]
[1727787690513,1.298162,63751.0,63750.0,0.004824]
[1727787691217,1.296162,63751.0,63750.0,0.000824]
[1727787691443,1.298162,63751.0,63750.0,0.000824]
[1727787691681,1.2356857,63751.0,63750.0,0.000824]
[1727787691920,1.2416857,63751.0,63750.0,0.001824]
[1727787692392,1.26627532,63751.0,63750.0,0.001824]
[1727787692878,1.2336857,63751.0,63750.0,0.000824]
[1727787693342,1.2466857,63751.0,63750.0,0.001824]
[1727787694067,1.2536857,63751.0,63750.0,0.002824]
[1727787699309,0.89550556,63751.0,63750.0,0.002824]
[1727787704538,0.73864556,63751.0,63750.0,0.002824]
[1727787704838,0.58219878,63751.0,63750.0,0.159686]
[1727787705067,0.58219878,63751.0,63750.0,0.237386]
[1727787705792,0.57519878,63751.0,63750.0,0.236386]
[1727787706284,0.56219878,63751.0,63750.0,0.235386]
[1727787706751,0.56219878,63751.0,63750.0,0.236386]
[1727787707212,0.72005878,63751.0,63750.0,0.008824]
[1727787707438,0.56319878,63751.0,63750.0,0.008824]
[1727787707679,0.72005878,63751.0,63750.0,0.008824]
[1727787707939,0.70987859,63751.0,63750.0,0.008824]
[1727787708170,0.56319878,63751.0,63750.0,0.008824]
[1727787708394,0.72005878,63751.0,63750.0,0.008824]
[1727787709089,0.56319878,63751.0,63750.0,0.008824]
[1727787709307,0.72005878,63751.0,63750.0,0.008824]
[1727787709539,0.56319878,63751.0,63750.0,0.008824]
[1727787709756,0.85898259,63751.0,63750.0,0.008824]
[1727787712458,0.85798259,63751.0,63750.0,0.001824]
[1727787712685,1.09464039,63751.0,63750.0,0.005824]
[1727787713172,1.09464039,63751.0,63750.0,0.004824]
[1727787713392,1.09664039,63751.0,63750.0,0.004824]
[1727787713619,1.09864039,63751.0,63750.0,0.004824]
[1727787714058,1.09664039,63751.0,63750.0,0.000824]
[1727787714509,1.10864039,63751.0,63750.0,0.001824]